Cogmind - Beta 15 @@@ ROGUE MODE // 2025.06.09 @ 18:03:17 Player: EX-OCT Result: Destroyed by FR-599(R) with Subdweller Laser Performance ------------- Evolutions (0) 0 Regions Visited (2) 400 Robots Destroyed (28) 140 Value Destroyed (649) 649 Prototype IDs (1) 20 Alien Tech Used (0) 0 Bonus (0) 0 TOTAL SCORE: 1209 Bonus ------- None Cogmind --------- Core Integrity 0/250 Matter 280/300 Energy 200/200 System Corruption 0% Temperature Cool (6) Movement Rolling (110) Location -10/Subcaves Parts ------- > --- POWER (1) -------- Subdweller Power Source > --- PROPULSION (2) --- Subdweller Monowheel > --- UTILITY (2) ------ (None) > --- WEAPON (2) ------- Subdweller Laser Subdweller Machine Gun > --- INVENTORY (5) ---- Light Ion Engine Improved Medium Laser Mini Grenade Launcher Scrap Shield Fragment (48) Peak State ------------ > --- POWER ------------ Ion Engine > --- PROPULSION ------- Armored Wheel Subdweller Monowheel > --- UTILITY ---------- Scrap Shield > --- WEAPON ----------- Improved Medium Laser Improved Medium Laser > --- INVENTORY -------- Light Ion Engine Improved Medium Laser Mini Grenade Launcher Mini Grenade Launcher Scrap Shield Fragment [Rating: 16] Favorites ----------- Power Ion Engine Engine Ion Engine Propulsion Light Treads Treads Light Treads Wheel Armored Wheel Utility Large Storage Unit Device Structural Scanner Storage Large Storage Unit Processor Terrain Scan Processor Protection Scrap Shield Weapon Improved Medium Laser Energy Gun Improved Medium Laser Ballistic Gun Light Assault Rifle Build | -11 -10 -10 ------- Run | Yrd Mat Sub Slots Evolved . | . . . Power . | . . . Propulsion . | . . . Utility . | . . . Weapon . | . . . Parts Attached 26 | 5 13 8 Power 4 | 1 1 2 Engine 4 | 1 1 2 Core . | . . . Reactor . | . . . Propulsion 8 | 2 4 2 Treads 2 | 2 . . Leg . | . . . Wheel 6 | . 4 2 Hover . | . . . Flight . | . . . Utility 6 | . 4 2 Device 3 | . 2 1 Storage 1 | . 1 . Processor 1 | . 1 . Hackware . | . . . Protection 1 | . . 1 Artifact . | . . . Weapon 8 | 2 4 2 Energy Gun 6 | 1 4 1 Energy Cannon . | . . . Ballistic Gun 2 | 1 . 1 Ballistic Cannon . | . . . Launcher . | . . . Special Weapon . | . . . Impact Weapon . | . . . Slashing Weapon . | . . . Piercing Weapon . | . . . Special Melee Weapon . | . . . Unidentified Prototypes 1 | . 1 . Parts Lost 7 | . . 7 Power 2 | . . 2 Propulsion 2 | . . 2 Utility 2 | . . 2 Weapon 1 | . . 1 Highest Loss Streak 3 | . . 3 To Critical Strikes . | . . . Average Backups 4 | . 5 5 Power 1 | . 1 1 Propulsion . | . . . Utility . | . . . Weapon 2 | . 2 3 Tool/Special . | . . . Unused Backups 4 | . . 4 Power 1 | . . 1 Propulsion . | . . . Utility . | . . . Weapon 3 | . . 3 Tool/Special . | . . . Average Slot Usage (%) 94 | . 96 83 Engine 13 | . 14 11 Treads 13 | . 15 3 Wheel 14 | . 12 19 Device 11 | . 12 6 Storage 7 | . 8 7 Processor 3 | . 4 . Protection 1 | . . 5 Energy Gun 23 | . 23 22 Ballistic Gun 4 | . 4 5 Peak Build Rating 16 | 5 14 16 Average Rating 11 | 4 10 13 On Entrance 6 | . 5 13 Naked Turns . | . . . Heaviest Build 32 | 8 32 32 Greatest Support 40 | 3 40 32 Greatest Overweight (x) 3 | 2 3 2 Average Overweight (x) 1 | 1 1 . Largest Inventory Capacity 15 | 5 15 15 Average Capacity 10 | 5 10 10 Most Carried 9 | 1 9 7 Average Carried 5 | . 5 5 Final Capacity 15 | 5 15 5 Final Carried 7 | 1 7 4 Class Distribution -------------------- 92% | Mutant 7% | Subdweller-Mutant Dominant Class ---------------- Mutant | -10/Materials Mutant | -10/Subcaves Resources | -11 -10 -10 ----------- Run | Yrd Mat Sub Matter Collected 554 | 205 259 90 Remotely . | . . . Salvage Created 800 | . 644 156 Parts 54 | . 47 7 Haulers Intercepted 1 | . 1 . Recyclers Shooed 1 | . 1 . Parts Field Recycled . | . . . Retrieved Matter . | . . . Parts Self-Destructed 4 | . . 4 Prevented . | . . . Kills | -11 -10 -10 ------- Run | Yrd Mat Sub Combat Hostiles Destroyed 25 | . 20 5 Guns 24 | . 19 5 Classes Destroyed 6 | . 5 1 Worker 1 | . 1 . Builder 1 | . 1 . Hauler 1 | . 1 . Swarmer 10 | . 10 . Grunt 12 | . 10 2 Subdweller 3 | . . 3 Best Kill Streak 5 | . 5 2 Combat Bots Only 4 | . 4 2 Max Kills in Single Turn 2 | . 2 1 Gunslinging . | . . . Exploded . | . . . Melee . | . . . Uniques/NPCs Destroyed . | . . . Combat | -11 -10 -10 -------- Run | Yrd Mat Sub Hostile Shots Fired 112 | . 76 36 Missed 25 | . 14 11 Hits 87 | . 62 25 Projectile 87 | . 62 25 AOE 8 | . . 8 Critical Strikes 2 | . 1 1 Damage Taken 1367 | . 612 755 Core 255 | . 116 139 Absorbed by Shields . | . . . Core Remaining (%) 100 | 100 . . Volleys Fired 79 | . 55 24 Largest 2 | . 2 2 Hottest 112 | . 112 112 Shots Fired 154 | . 110 44 Gun 154 | . 110 44 Cannon . | . . . Launcher . | . . . Special . | . . . Kinetic 16 | . 6 10 Thermal 132 | . 98 34 Explosive . | . . . Electromagnetic 6 | . 6 . Robot Hit Streak 11 | . 11 10 Robot Miss Streak 7 | . 7 3 Penetration Max . | . . . Secondary Targets 1 | . . 1 Max Gunslinging Chain 1 | . . 1 Shots Hit Robots 89 | . 58 31 Core Hits 32 | . 22 10 Critical Kills . | . . . Critical Parts Destroyed . | . . . Critical Strikes 13 | . 11 2 Burn 13 | . 11 2 Melee Attacks . | . . . Impact . | . . . Slashing . | . . . Piercing . | . . . Sneak Attacks . | . . . Combat Hostiles . | . . . Follow-up Attacks . | . . . Damage Inflicted 1563 | . 997 566 Guns 1549 | . 983 566 Cannons . | . . . Explosions . | . . . Melee . | . . . Ramming 14 | . 14 . Kinetic 131 | . 14 117 Thermal 1372 | . 923 449 Explosive . | . . . Electromagnetic 46 | . 46 . Impact . | . . . Slashing . | . . . Piercing . | . . . Highest Corruption . | . . . Average Corruption . | . . . Corruption Purged . | . . . Corruption Blocked . | . . . Overload Shots . | . . . Overflow Damage . | . . . Projectiles . | . . . Explosions . | . . . Melee . | . . . Knockbacks . | . . . Impact . | . . . Kinetic . | . . . Secondary . | . . . Self-Inflicted Damage . | . . . Shots . | . . . Rammed 4 | . 4 . Targets Rammed 4 | . 4 . Kicked . | . . . Crushed . | . . . Highest Temperature 517 | . 517 7 Average Temperature 165 | . 166 4 Received Heat Transfer 234 | . 144 90 Effects 9 | . 9 . Shutdowns 3 | . 3 . Energy Bleed 2 | . 2 . Matter Decay 1 | . 1 . Short Circuit 2 | . 2 . Damage (minor) 1 | . 1 . Siege Activations . | . . . Martial Activations . | . . . Shielding Activations . | . . . Robots Disrupted . | . . . Combat Hostiles . | . . . Robots Corrupted . | . . . Combat Hostiles . | . . . Parts Fried . | . . . Impact Corruptions . | . . . Robots Melted 1 | . 1 . Combat Hostiles 1 | . 1 . Parts Melted 4 | . 4 . Heat Transferred 3801 | . 2812 989 Parts Sabotaged . | . . . Parts Stolen . | . . . Parts Stripped . | . . . Power Chain Reactions . | . . . Alert | -11 -10 -10 ------- Run | Yrd Mat Sub Maximum Alert Level 1 | . 1 . Low Security (%) 87 | 100 86 . Level 1 12 | . 13 . Level 2 . | . . . Level 3 . | . . . Level 4 . | . . . Level 5 . | . . . High Security . | . . . Max Security . | . . . Peak Influence 275 | . 275 . Initial . | . . . Average 98 | . 102 . Influence Increases 621 | . 571 50 Destroy 0b10 Robot/C 440 | . 400 40 Destroy 0b10 Robot/NC 15 | . 15 . Destroy Leader 82 | . 72 10 Successful Hack 24 | . 24 . Select Force Hacks 60 | . 60 . Influence Decreases 614 | . 306 308 Entered New Map 128 | . . 128 Time Decay 416 | . 306 110 Lost Part 70 | . . 70 Squads Dispatched 4 | . 4 . Investigation 3 | . 3 . Extermination . | . . . Reinforcement 1 | . 1 . Assault . | . . . Garrison . | . . . Intercept . | . . . Searches Triggered . | . . . Construction Impeded . | . . . Haulers Reinforced . | . . . Active Scanning Responses . | . . . Cargo Convoy Interrupts . | . . . Stealth | -11 -10 -10 --------- Run | Yrd Mat Sub Distress Signals 5 | . 5 . Communications Jammed . | . . . Distress Signals . | . . . Times Spotted 36 | . 28 8 Peak Tracking Total 5 | . 5 3 Tactical Retreats . | . . . Traps | -11 -10 -10 ------- Run | Yrd Mat Sub Traps Triggered 1 | . 1 . Indirectly . | . . . Trap Hack Attempts . | . . . Triggered . | . . . Disarmed . | . . . Reprogrammed . | . . . Reused . | . . . Traps Extracted . | . . . Installed . | . . . Triggered . | . . . Machines | -11 -10 -10 ---------- Run | Yrd Mat Sub Machines Disabled . | . . . Max in Single Turn . | . . . Machines Repaired . | . . . Machines Dismantled . | . . . Machines Sabotaged . | . . . Overloaded Fab Kills . | . . . Hacking | -11 -10 -10 --------- Run | Yrd Mat Sub Machines Accessed 7 | . 7 . Terminals 5 | . 5 . Fabricators . | . . . Repair Stations . | . . . Recycling Units 2 | . 2 . Scanalyzers . | . . . Garrison Access . | . . . Total Hacks 21 | . 21 . Successful 10 | . 10 . Failed 11 | . 11 . Catastrophic . | . . . Database Lockouts . | . . . Manual 19 | . 19 . Terminals 19 | . 19 . Fabricators . | . . . Repair Stations . | . . . Recycling Units 2 | . 2 . Scanalyzers . | . . . Garrison Access . | . . . Terminal Hacks 4 | . 4 . Robot Analysis 2 | . 2 . Terminal Index 1 | . 1 . Zone Layout 1 | . 1 . Fabricator Hacks . | . . . Repair Station Hacks . | . . . Recycling Unit Hacks . | . . . Scanalyzer . | . . . Garrison Access Hacks . | . . . Unauthorized Hacks 6 | . 6 . Terminals 4 | . 4 . Botnet 4 | . 4 . Fabricators . | . . . Repair Stations . | . . . Recycling Units 2 | . 2 . Tunnel 2 | . 2 . Scanalyzers . | . . . Garrison Access . | . . . Data Cores Recovered . | . . . Used . | . . . Hacking Detections 5 | . 5 . Full Trace Events 1 | . 1 . Feedback Events . | . . . Feedback Blocked . | . . . Robot Schematics Acquired . | . . . Robots Built . | . . . Authchips . | . . . Time . | . . . Total Robot Build Rating . | . . . Part Schematics Acquired . | . . . Parts Built . | . . . Authchips . | . . . Time . | . . . Total Part Build Rating . | . . . Parts Repaired . | . . . Time . | . . . Parts Recycled . | . . . Recycled Matter . | . . . Retrieved Matter . | . . . Retrieved Components . | . . . Parts Scanalyzed . | . . . Part Schematics Acquired . | . . . Parts Damaged . | . . . Bothacking | -11 -10 -10 ------------ Run | Yrd Mat Sub Used RIF Installer . | . . . Robots Hacked . | . . . Non-combat . | . . . Combat . | . . . Robot Hacks Applied . | . . . Relay Couplers Released . | . . . Fabnet Peak Effective % . | . . . Robots Rewired . | . . . Allies Hacked . | . . . Hacks Repelled . | . . . Allies | -11 -10 -10 -------- Run | Yrd Mat Sub Total Allies . | . . . Largest Group . | . . . Highest-Rated Group . | . . . Highest-Rated Ally . | . . . Total Orders . | . . . Ally Attacks . | . . . Total Damage . | . . . Kills . | . . . Allies Corrupted . | . . . Allies Melted . | . . . Intel | -11 -10 -10 ------- Run | Yrd Mat Sub Active Infowar (turns) 970 | . 911 59 Terrain 328 | . 328 . Structural 642 | . 583 59 Robot Analysis Total 2 | . 2 . Derelict Logs Recovered . | . . . Drone Launches . | . . . Drone Recoveries . | . . . Exploration | -11 -10 -10 ------------- Run | Yrd Mat Sub Turns Passed 1281 | 42 1005 234 Spaces Moved 703 | 31 549 123 Core 241 | 31 210 . Treads 70 | . 70 . Legs . | . . . Wheels 392 | . 269 123 Hover . | . . . Flight . | . . . Fastest Speed 50 | 50 90 90 Average Speed 132 | 111 139 107 Slowest Speed 240 | 150 240 120 Overloaded Moves . | . . . Propulsion Burnouts . | . . . Robots Hopped . | . . . Potential Cave-ins 3 | . . 3 Cave-ins Triggered . | . . . Exploration Rate (%) 28 | 2 75 9 Regions Visited 2 Branch Regions 1 Pre-discovered Areas 2 | . 2 . Known Exits Taken . | . . . Unknown Exits Taken 2 | 1 1 . Scrap Searched . | . . . Spaces Dug . | . . . Terrain Destroyed . | . . . Melee . | . . . Projectile . | . . . AOE . | . . . Terrain Rammed . | . . . Walls Destroyed . | . . . Machines Disabled . | . . . Actions | -11 -10 -10 --------- Run | Yrd Mat Sub Total 888 | 36 671 181 Wait 50 | . 34 16 Move 701 | 30 548 123 Hop . | . . . Pick Up 8 | 1 6 1 Fast Attach 16 | 5 6 5 Attach 5 | . 3 2 Detach . | . . . Swap 10 | . 7 3 Drop 15 | . 8 7 Fire 79 | . 55 24 Melee . | . . . Ram . | . . . Kick . | . . . Crush 4 | . 4 . Escape Stasis . | . . . Rewire . | . . . Trap . | . . . Miscellaneous . | . . . Route ------- -11/Scrapyard -10/Materials (discovered 5 exits: [*Mat x3] / [*Min] / [*Sub]) -10/Subcaves History --------- Turn | Location | Event 7 | -11/Scrapyard | Discovered new exit (range 15) 43 | -11/Scrapyard | Entered Materials 291 | -10/Materials | Discovered new exit (range 10) 314 | -10/Materials | Build established: Mutant 377 | -10/Materials | Discovered new exit (range 12) 447 | -10/Materials | Discovered new exit (range 12) 827 | -10/Materials | Discovered new exit (range 9) 839 | -10/Materials | Discovered new exit (range 13) 1048 | -10/Materials | Entered Subcaves 1049 | -10/Subcaves | Approached by a straggling Scientist 1098 | -10/Subcaves | Core integrity fell below 50% 1138 | -10/Subcaves | Lost 3 parts (1p1n1u) 1151 | -10/Subcaves | Ambushed by Subdweller buried in earth 1267 | -10/Subcaves | Ambushed by Subdweller buried in earth 1277 | -10/Subcaves | Core integrity fell below 20% 1282 | -10/Subcaves | Destroyed by FR-599(R) with Subdweller Laser Last Messages --------------- 01177_ Dropped Com. Wheel. 01180_ Dropped Grenade Launcher. 01187_ Acquired Scrap Shield Fragment. 01188_ Acquired 25 matter. 01190_ Dropped Imp. Medium Laser. 01191_ Acquired Sub. Machine Gun. 01193_ Dropped Ion Engine. 01196_ Dropped Mni. Grenade Launcher. 01201_ Subatomizers dissect the Sub. Monowheel. 01205_ Acquired 8 matter. 01213_ Acquired 22 matter. 01216_ Subatomizers dissect the Sub. Monowheel. 01250_ Q4-8AG(O) puts together Sub. Laser. 01259_ Acquired Sub. Laser. 01267_ Scrap Shield destroyed. 01267_ 3S-XEH(R) destroyed. 01268_ FR-599(R): "ARGHSUB!" 01274_ Arm. Wheel destroyed. 01279_ 7C-97G(R) destroyed. 01279_ Switching to secondary target: FR-599(R). Map ----- +----------------------------------------------------+ | ?????????????????????????????????????????????????? | | ?????????????????????????????????????????????????? | | ?????????????????????????????????????????????????? | | ?????????????????????????????????????????????????? | | ?????????????????????????????????????????????????? | | ?????????????????????????????????????????????????? | | ?????????????????????????????????????????????????? | | ?????????????????????????????????????????????????? | | ?????????????????????????????????????????????????? | | ?????????????????????????????????????????????????? | | ?????????? ????????????????????????????????????? | | ?????????# ????????????????????????????????????? | | ????????# ??#?????????????????????????????????? | | ???????##" ? ####?????????????????????????????? | | ??????#"" ?? ##???????????????????????????? | | ??????? ??? #???????????????????????????? | | ??????? ???# #???????????????????????????? | | ????????" ???# ##??????????????????????????? | | ????????# ???# #??????????????????????????? | | ????????# ???# #######????????#???????????? | | ?????????# #????# # ##?????% ##??????????? | | ?????????# #####?# #### ??????????? | | ????????## ### ; !%%&! ?????????????? | | ????????# |%#?????????????????? | | ?????????## [ #??????????????????? | | ????????## @ R #??????????????????? | | ????????# #?????????????????? | | ????????### ## ##?????????????????? | | ??????????## ## #??????????????????? | | ??????????# #### ;; #??????????????????? | | ??????????## #?###### ## ###??????????????????? | | ???????????# ##??????###??##????????????????????? | | ???????????# #?????????????????????????????????? | | ??????????## ##????????????????????????????????? | | ??????????# ##???????????????????????????????? | | ??????????### ##??????????????????????????????? | | ???????????# #??????????????????????????????? | | ???????????## #####??????????????????????????????? | | ???????????# " #?????????????????????????????????? | | ???????????##" #?????????????????????????????????? | | ???????????## ##?????????????????????????????????? | | ??????????## " ##????????????????????????????????? | | ??????????# "" ###??????????????????????????????? | | ??????????#"" " #??????????????????????????????? | | ??????????#"" " " ##???????????????????????####### | | ??????????#"""##"" #???#######???????????######### | | ??????????#"" #" ##### #???????????### # | | ??????????#""" # #?#####?????## # | | ??????????# ""## # #?######???### | | ??????????## "# *[= #### #####?### ?? | +----------------------------------------------------+ Best States ------------- Heat Dissipation 39 Energy Generation 15 Energy Capacity 250 Matter Stores 300 Matter Capacity 300 Sight Range 16 Terrain Scan Range 14 Terrain Scan Density 85 Armor Coverage 800 Evasion (%) 50 Recoil Reduction 2 Item Schematics ----------------- None Robot Schematics ------------------ None Fabricated ------------ Nothing Repaired ---------- Nothing Alien Tech Used ----------------- None Achievements -------------- None Challenges ------------ None Game ------ Seed ContainmentIntegrityCannon Manual? 0 Play Time 00:13:39 Cumulative 224.0 hours Start 2025.06.09 @ 17:49:48 End 2025.06.09 @ 18:03:17 Sessions 1 Manual Loads 0 Difficulty Rogue Special Mode None Game No. 115 Rogue 115 Adventurer 0 Explorer 0 Win Type - Total 15 Types 6/0/5/1/2/1/0/0/0/0 Lore% 81 Gallery% 69 Achievement% 66 Wizard Run 0 Options --------- Layout 1 ASCII 0 Keyboard 0 Movement Numpad Keybinds 0 Fullscreen 1 Font 24/Smallcaps Map View 50x35 Zoom Use 0% Tactical HUD 1 Map Filters NONE Filters NONE Steam 1 RUN: c22511bb-f784-4996-a079-29b9665ba747